bitfinex-derivatives/quotes_SOLF0:USTF0_20250929
["timestamp","ask_amount","ask_price","bid_price","bid_amount"]
[1759175487005,5.26917246,212.69,212.56,3.40768676]
[1759175487302,7.39,212.68,212.6,10.95768676]
[1759175487904,7.39,212.68,212.62,4.2299]
[1759175488106,7.39,212.68,212.6,10.95768676]
[1759175489299,0.81860203,212.7,212.6,69.21478676]
[1759175489504,7.39,212.73,212.61,7.55]
[1759175490401,4.229,212.68,212.61,7.55]
[1759175490606,7.39,212.67,212.61,7.55]
[1759175490806,7.39,212.67,212.59,4.2306]
[1759175491101,4.2294,212.66,212.57,10.95768676]
[1759175491301,7.39,212.66,212.57,10.95768676]
[1759175491501,7.39,212.66,212.57,7.55]
[1759175491703,7.39,212.66,212.54,3.40768676]
[1759175492000,7.39,212.62,212.53,7.55]
[1759175492603,7.39,212.58,212.49,7.55]
[1759175494100,11.6211,212.58,212.49,7.55]
[1759175495997,7.39,212.58,212.49,7.55]
[1759175496203,7.39,212.56,212.45,7.55]
[1759175496406,10.79768676,212.56,212.45,7.55]
[1759175496804,7.39,212.52,212.4,4.2344]
[1759175496999,124.39,212.52,212.4,4.2344]
[1759175497610,7.39,212.49,212.39,7.55]
[1759175498013,7.39,212.44,212.34,7.55]
[1759175498704,65.8337,212.52,212.34,7.55]
[1759175498905,78.93,212.51,212.37,7.55]
[1759175499308,11.6224,212.51,212.4,4.2344]
[1759175499509,106.54,212.5,212.4,4.2344]
[1759175500509,7.39,212.51,212.4,11.7844]
[1759175501512,7.39,212.51,212.42,4.234]
[1759175502806,4.2325,212.5,212.35,7.55]
[1759175503010,10.79768676,212.49,212.35,7.55]
[1759175503909,7.39,212.45,212.35,11.7854]
[1759175504414,7.39,212.45,212.37,4.235]
[1759175504819,7.39,212.45,212.35,7.55]
[1759175506017,7.39,212.45,212.36,7.64288676]
[1759175506218,7.39,212.49,212.4,2.18303658]
[1759175507420,7.39,212.49,212.39,2.18303658]
[1759175507819,7.39,212.49,212.41,2.18303658]
[1759175509611,7.39,212.49,212.43,2.18303658]
[1759175511921,7.39,212.49,212.4,7.55]
[1759175512117,7.39,212.49,212.41,2.18303658]
[1759175512518,7.39,212.49,212.43,2.18303658]
[1759175515116,11.6228,212.49,212.41,2.18303658]
[1759175515315,2.18303658,212.46,212.37,2.18303658]
[1759175515621,7.31,212.45,212.37,2.18303658]
[1759175516223,7.31,212.45,212.32,323.82]
[1759175516224,7.31,212.45,212.35,2.18303658]
[1759175516720,11.5436,212.45,212.35,6.41823658]
[1759175517516,7.31,212.45,212.36,4.2351]
[1759175517717,7.31,212.45,212.37,2.18303658]
[1759175520125,11.5436,212.45,212.36,2.18303658]
[1759175520421,9.49303658,212.49,212.38,2.18303658]
[1759175520815,7.31,212.49,212.37,2.18303658]
[1759175521118,7.31,212.4,212.31,2.18303658]
[1759175521319,7.31,212.38,212.29,9.98303658]
[1759175521822,7.31,212.38,212.29,28.47258885]
[1759175522020,7.31,212.38,212.31,2.18303658]
[1759175522225,9.49303658,212.38,212.17,65.9403]
[1759175522417,7.31,212.33,212.24,12.0375]
[1759175522612,7.31,212.33,212.25,2.18303658]
[1759175522818,7.31,212.33,212.27,2.18303658]
[1759175524526,7.31,212.33,212.25,2.18303658]
[1759175524722,2.18303658,212.28,212.19,7.8]
[1759175524923,9.49303658,212.32,212.21,2.18303658]
[1759175525127,7.31,212.32,212.25,2.18303658]
[1759175525427,7.31,212.32,212.22,7.8]
[1759175525626,7.31,212.32,212.26,2.18303658]
[1759175526826,89.26,212.34,212.28,2.18303658]
[1759175527421,89.26,212.34,212.28,6.41983658]
[1759175527727,89.26,212.34,212.28,2.18303658]
[1759175528724,7.31,212.33,212.25,2.18303658]
[1759175529122,11.5459,212.33,212.25,2.18303658]
[1759175529322,11.5459,212.33,212.22,7.8]
[1759175529523,13.72893658,212.33,212.24,2.18303658]
[1759175530620,4.2362,212.32,212.24,2.18303658]
[1759175530821,7.31,212.3,212.17,7.8]
[1759175531026,2.18303658,212.27,212.19,2.18303658]
[1759175531232,7.31,212.26,212.17,7.8]
[1759175531427,7.31,212.26,212.16,2.18303658]
[1759175531928,4.2377,212.24,212.16,2.18303658]
[1759175532427,2.18303658,212.25,212.16,2.18303658]
[1759175532624,7.31,212.26,212.18,2.18303658]
[1759175532825,7.31,212.3,212.2,2.18303658]
[1759175533029,7.31,212.3,212.16,73.7432]
[1759175533333,7.31,212.3,212.22,2.18303658]
[1759175533523,7.31,212.3,212.22,9.98303658]
[1759175533728,7.31,212.3,212.22,7.8]
[1759175534027,7.31,212.3,212.23,2.18303658]
[1759175534230,7.31,212.3,212.25,2.18303658]
[1759175535332,7.31,212.3,212.25,9.83303658]
[1759175536228,33.02,212.35,212.25,7.65]
[1759175536426,7.38,212.34,212.22,7.65]
[1759175536626,7.38,212.34,212.26,4.2372]
[1759175537230,7.38,212.37,212.28,4.2368]
[1759175537429,7.38,212.37,212.26,7.65]
[1759175537729,11.6152,212.37,212.26,7.65]
[1759175537933,36.44,212.41,212.22,7.65]
[1759175537934,7.38,212.35,212.22,7.65]
[1759175539236,4.236,212.33,212.24,4.2375]
[1759175539431,7.38,212.32,212.24,4.2375]
[1759175539729,7.38,212.32,212.2,5.38223703]
[1759175540731,7.38,212.3,212.18,7.65]
[1759175541130,7.38,212.3,212.2,4.2383]
[1759175542332,7.38,212.28,212.18,7.65]
[1759175542731,4.2372,212.27,212.18,7.65]
[1759175543030,7.38,212.26,212.18,7.65]
[1759175543631,11.6174,212.26,212.18,7.65]
[1759175544330,8.0,212.33,212.18,7.65]
[1759175544531,65.8829,212.36,212.18,73.5875]
[1759175544532,8.0,212.31,212.18,73.5875]
[1759175545127,8.0,212.31,212.19,65.935]
[1759175545334,8.0,212.31,212.2,7.98]
[1759175546336,8.0,212.31,212.22,4.2379]
[1759175546730,8.0,212.31,212.2,7.98]
[1759175547634,12.2362,212.31,212.2,7.98]
[1759175547843,8.0,212.31,212.2,7.98]
[1759175548738,8.0,212.38,212.22,7.98]
[1759175549036,8.0,212.38,212.24,7.98]
[1759175549639,8.0,212.35,212.26,4.2371]
[1759175550640,8.0,212.35,212.24,7.98]
[1759175552638,8.0,212.35,212.28,4.2367]
[1759175554834,8.0,212.35,212.26,4.2372]
[1759175555238,8.0,212.35,212.27,12.2169]
[1759175555540,8.0,212.35,212.27,7.98]
[1759175556041,47.24,212.39,212.27,7.98]
[1759175556243,47.24,212.39,212.28,7.98]
[1759175556745,14.6831447,212.42,212.33,7.98]
[1759175557544,14.6831447,212.42,212.34,4.2355]
[1759175558046,10.4490447,212.42,212.34,4.2355]
[1759175558246,10.4490447,212.42,212.35,2.18395628]
[1759175558445,10.4490447,212.42,212.35,6.41925628]
[1759175560244,10.4490447,212.42,212.35,2.18395628]
[1759175561945,10.4490447,212.42,212.35,6.41935628]
[1759175562146,10.4490447,212.42,212.35,2.18395628]
[1759175563549,10.4490447,212.42,212.36,4.2351]
[1759175564351,8.0,212.41,212.37,2.18395628]
[1759175564751,8.0,212.41,212.35,2.18395628]
[1759175565553,8.0,212.41,212.35,6.41925628]
[1759175566254,8.0,212.41,212.35,4.2353]
[1759175566855,8.0,212.41,212.33,15.62811177]
[1759175567555,2.4490447,212.42,212.34,7.98]
[1759175567754,8.0,212.44,212.36,3.41231177]
[1759175568953,12.2338,212.44,212.38,4.2347]
[1759175569545,8.0,212.44,212.38,4.2347]
[1759175569746,8.0,212.44,212.36,7.64751177]
[1759175569952,8.0,212.45,212.34,11.39231177]
[1759175570254,8.0,212.42,212.34,11.39231177]
[1759175570848,8.0,212.42,212.34,15.62791177]
[1759175571052,8.0,212.42,212.34,11.39231177]
[1759175572361,5.25867008,212.54,212.53,7.98]
[1759175572560,116.76,212.68,212.5,7.98]
[1759175572859,3.41231177,212.72,212.55,3.41231177]
[1759175572860,4.2293,212.66,212.55,3.41231177]
[1759175573161,79.57978847,212.73,212.56,3.9901765]
[1759175573360,4.2288,212.69,212.59,3.41231177]
[1759175573663,118.8,212.7,212.59,3.41231177]
[1759175573860,0.81848651,212.74,212.59,3.41231177]
[1759175574062,4.2282,212.72,212.6,4.2304]
[1759175574264,7.39,212.71,212.6,4.2304]
[1759175574961,7.39,212.71,212.63,3.41231177]
[1759175575162,118.76,212.7,212.63,3.41231177]
[1759175575764,7.39,212.71,212.63,3.41231177]
[1759175575963,118.76,212.7,212.63,3.41231177]
[1759175576262,118.76,212.7,212.6,4.2304]
[1759175576456,7.39,212.69,212.54,8.61836294]
[1759175577056,7.39,212.67,212.54,4.2315]
[1759175577662,7.39,212.67,212.53,7.92]
[1759175577859,7.39,212.65,212.53,7.92]
[1759175578265,28.9,212.64,212.53,7.92]
[1759175578459,7.39,212.65,212.53,7.92]
[1759175578660,52.1978301,213.6,212.53,7.92]
[1759175578661,7.39,212.69,212.54,86.33903422]
[1759175578862,67.46,212.67,212.55,11.8938319]
[1759175579064,67.46,212.67,212.56,3.9738319]
[1759175579369,67.46,212.67,212.55,7.92]
[1759175579569,67.46,212.67,212.58,4.2308]
[1759175579772,7.39,212.69,212.59,7.92]
[1759175580070,118.76,212.67,212.59,7.92]
[1759175580668,7.39,212.66,212.57,4.2309]
[1759175581063,7.39,212.66,212.55,7.92]
[1759175581873,89.92,212.65,212.55,7.92]
[1759175582559,7.39,212.64,212.55,7.92]
[1759175582762,89.92,212.65,212.53,14.33152759]
[1759175582962,7.39,212.64,212.51,7.92]
[1759175583575,4.2299,212.63,212.51,7.92]
[1759175584077,4.2299,212.63,212.52,4.232]
[1759175584872,4.2299,212.63,212.51,21.86065257]
[1759175585174,125.91,212.62,212.51,21.86065257]
[1759175585564,130.1403,212.62,212.51,26.09285257]
[1759175587170,11.6203,212.62,212.53,4.2318]
[1759175587479,118.46,212.61,212.53,4.2318]
[1759175588184,118.46,212.61,212.51,21.86065257]
[1759175588478,7.39,212.6,212.47,7.92]
[1759175589381,7.39,212.56,212.47,12.1529]
[1759175590278,7.39,212.56,212.41,44.79269562]
[1759175590477,65.8236,212.55,212.41,44.79269562]
[1759175590779,7.39,212.54,212.41,7.92]
[1759175590971,7.39,212.52,212.41,7.92]
[1759175591166,7.39,212.52,212.41,21.71903619]
[1759175591369,7.39,212.52,212.41,7.92]
[1759175591879,7.39,212.44,212.3,7.92]
[1759175592179,118.42,212.43,212.3,7.92]
[1759175592482,118.42,212.43,212.32,4.236]
[1759175592676,118.5,212.42,212.32,4.236]
[1759175592872,7.39,212.44,212.34,4.2356]
[1759175593078,118.48,212.43,212.33,7.92]
[1759175593476,7.39,212.49,212.36,73.8019]
[1759175593671,59.7,212.48,212.37,7.92]
[1759175593979,7.39,212.46,212.37,7.92]
[1759175594176,7.39,212.46,212.33,8.61836294]
[1759175594381,7.39,212.46,212.32,7.95]
[1759175594878,7.39,212.46,212.34,7.95]
[1759175595079,56.68,212.45,212.34,7.95]
[1759175595280,56.68,212.45,212.37,4.2348]
[1759175596077,118.62,212.44,212.34,12.1855]
[1759175596274,7.76,212.43,212.34,12.1855]
[1759175597480,7.76,212.43,212.36,4.2352]
[1759175597669,65.8829,212.36,212.26,7.95]
[1759175597871,7.76,212.35,212.2,7.95]
[1759175598075,7.76,212.32,212.2,7.95]
[1759175598581,7.76,212.32,212.21,4.2382]
[1759175598781,73.18,212.31,212.2,73.8813]
[1759175599269,7.76,212.32,212.23,4.2377]
[1759175599470,119.76,212.31,212.23,4.2377]
[1759175599681,119.76,212.31,212.2,7.95]
[1759175599877,382.0565,212.38,212.18,65.9373]
[1759175599878,119.74,212.33,212.24,7.95]
[1759175600675,11.9953,212.36,212.24,7.95]
[1759175600880,119.78,212.35,212.24,7.95]
[1759175601179,7.76,212.36,212.27,4.237]
[1759175601974,43.86,212.35,212.27,4.237]
[1759175602371,43.86,212.35,212.24,12.1876]
[1759175602576,43.86,212.35,212.17,73.8908]
[1759175602778,7.76,212.34,212.19,7.95]
[1759175602979,74.5,212.33,212.24,4.2376]
[1759175603178,119.78,212.33,212.24,4.2376]
[1759175603983,7.76,212.34,212.26,4.2372]
[1759175604185,89.4,212.33,212.26,4.2372]
[1759175604486,7.76,212.34,212.26,4.2372]
[1759175604487,127.5,212.34,212.26,4.2372]
[1759175604678,7.76,212.34,212.26,4.2372]
[1759175604879,61.0,212.34,212.26,4.2372]
[1759175605079,7.76,212.34,212.26,4.2372]
[1759175605280,60.8,212.34,212.25,7.95]
[1759175605486,7.95,212.33,212.23,8.01]
[1759175606081,127.61,212.33,212.24,65.9186]
[1759175606682,7.95,212.32,212.23,8.01]
[1759175607585,7.95,212.32,212.27,4.237]
[1759175607792,127.61,212.33,212.27,4.237]
[1759175610481,119.56,212.32,212.27,4.237]
[1759175610686,119.56,212.32,212.27,12.247]
[1759175610687,127.51,212.32,212.27,12.247]
[1759175610886,127.51,212.32,212.27,4.237]
[1759175611585,7.95,212.31,212.27,4.237]
[1759175612187,58.03,212.31,212.27,4.237]
[1759175612386,50.08,212.31,212.27,4.237]
[1759175612784,7.95,212.3,212.27,4.237]
[1759175613093,7.95,212.3,212.2,65.9316]
[1759175613292,79.9726,212.46,212.23,65.9225]
[1759175613491,7.95,212.37,212.24,8.01]
[1759175614088,50.82,212.36,212.24,8.01]
[1759175614498,119.4,212.35,212.28,4.2367]
[1759175615203,127.35,212.34,212.28,4.2367]
[1759175615397,119.4,212.34,212.29,4.2365]
[1759175615998,127.33,212.33,212.29,4.2365]
[1759175616198,7.95,212.33,212.29,4.2365]
[1759175616400,84.02,212.34,212.3,4.2363]
[1759175616900,91.97,212.34,212.3,4.2363]
[1759175617703,84.02,212.34,212.3,4.2363]
[1759175617900,7.95,212.33,212.27,4.2369]
[1759175618496,7.95,212.33,212.28,4.2367]
[1759175618701,91.97,212.34,212.28,4.2367]
[1759175619300,96.2057,212.34,212.28,4.2367]
[1759175619508,96.2057,212.34,212.26,4.2372]
[1759175620303,4.2361,212.32,212.26,4.2372]
[1759175620500,7.95,212.32,212.26,4.2372]
[1759175622003,7.95,212.37,212.28,4.2367]
[1759175622308,7.95,212.35,212.28,4.2367]
[1759175623809,7.95,212.35,212.26,8.01]
[1759175624205,85.83,212.35,212.26,8.01]
[1759175624912,85.83,212.35,212.3,4.2364]
[1759175625111,7.95,212.38,212.27,8.01]
[1759175625311,118.98,212.37,212.27,8.01]
[1759175625513,118.98,212.37,212.29,4.2366]
[1759175626213,118.98,212.37,212.3,4.2363]
[1759175626407,118.94,212.36,212.3,4.2363]
[1759175626808,118.94,212.36,212.31,4.2362]
[1759175627108,7.95,212.35,212.31,4.2362]
[1759175627313,118.9,212.36,212.31,4.2362]
[1759175627713,7.95,212.35,212.31,4.2362]
[1759175629815,7.95,212.35,212.28,4.2368]
[1759175630403,118.76,212.34,212.28,4.2368]
[1759175630607,7.95,212.33,212.29,4.2365]
[1759175631615,7.95,212.33,212.3,4.2364]
[1759175632215,7.95,212.38,212.32,4.2359]
[1759175632418,118.66,212.37,212.27,73.9195]
[1759175632713,7.95,212.38,212.34,4.2356]
[1759175632906,7.95,212.36,212.34,4.2356]
[1759175633105,126.57,212.36,212.34,4.2356]
[1759175634015,8.76982661,212.39,212.35,4.2353]
[1759175634216,118.58,212.38,212.35,4.2353]
[1759175634418,7.83,212.37,212.35,4.2353]
[1759175634718,126.41,212.37,212.35,4.2353]
[1759175634913,7.83,212.41,212.36,4.2351]
[1759175635114,7.83,212.39,212.36,4.2351]
[1759175635310,0.81963352,212.43,212.32,7.73]
[1759175635623,118.56,212.42,212.32,7.73]
[1759175636119,118.62,212.41,212.32,7.73]
[1759175636716,7.83,212.4,212.37,4.235]
[1759175636917,0.81963352,212.43,212.37,4.235]
[1759175637117,118.58,212.42,212.37,4.235]
[1759175637518,7.83,212.41,212.37,4.235]
[1759175637915,118.58,212.42,212.37,4.235]
[1759175638121,118.52,212.41,212.37,4.235]
[1759175638318,118.52,212.41,212.31,65.8956]
[1759175638319,7.83,212.46,212.38,2.18388947]
[1759175638523,61.36,212.45,212.41,2.18388947]
[1759175638719,7.83,212.44,212.36,2.18388947]
[1759175639024,12.0638,212.44,212.37,4.2349]
[1759175639318,12.0638,212.44,212.36,2.18388947]
[1759175639522,118.56,212.43,212.37,2.18388947]
[1759175640227,7.83,212.44,212.38,4.2347]
[1759175640523,7.83,212.42,212.33,7.73]
[1759175640717,7.83,212.42,212.35,2.18388947]
[1759175641628,7.83,212.42,212.36,4.2352]
[1759175642125,122.754,212.43,212.37,4.2349]
[1759175642326,118.42,212.42,212.37,4.2349]
[1759175642527,7.83,212.41,212.37,4.2349]
[1759175643428,6.41738947,212.45,212.38,11.9647]
[1759175643629,118.42,212.44,212.38,11.9647]
[1759175644026,118.42,212.44,212.38,4.2347]
[1759175644727,7.83,212.43,212.38,4.2347]
[1759175645025,7.83,212.43,212.36,4.2352]
[1759175645429,7.83,212.43,212.34,9.91388947]
[1759175645828,7.83,212.43,212.36,2.18388947]
[1759175646224,82.72,212.42,212.36,2.18388947]
[1759175646626,7.83,212.41,212.37,4.2349]
[1759175646825,82.72,212.42,212.36,2.18388947]
[1759175647030,82.72,212.42,212.34,7.73]
[1759175647031,118.28,212.41,212.34,9.91388947]
[1759175648330,2.18388947,212.39,212.3,2.18388947]
[1759175648527,7.83,212.38,212.3,2.18388947]
[1759175649028,7.83,212.38,212.32,4.2359]
[1759175649229,7.83,212.38,212.3,2.18388947]
[1759175649526,118.24,212.37,212.33,7.73]
[1759175649926,118.24,212.36,212.33,7.73]
[1759175650135,118.24,212.4,212.33,7.73]
[1759175650323,2.18388947,212.42,212.36,7.73]
[1759175650324,118.24,212.42,212.36,7.73]
[1759175651634,7.83,212.41,212.39,4.2345]
[1759175652427,7.83,212.46,212.4,4.2344]
[1759175652624,7.83,212.44,212.4,4.2344]
[1759175654032,7.83,212.44,212.41,4.2341]
[1759175654233,125.48,212.43,212.41,4.2341]
[1759175654434,125.48,212.43,212.37,2.18388947]
[1759175655536,118.08,212.42,212.37,2.18388947]
[1759175655737,125.42,212.42,212.39,4.2346]
[1759175656041,118.08,212.42,212.39,4.2346]
[1759175656240,7.34,212.41,212.39,4.2346]
[1759175656433,125.42,212.42,212.39,4.2346]
[1759175657037,125.42,212.42,212.4,4.2343]
[1759175657932,7.34,212.42,212.4,4.2343]
[1759175658142,86.2,212.42,212.4,4.2343]
[1759175660348,10.65993434,212.48,212.4,2.18388947]
[1759175660646,117.94,212.47,212.4,2.18388947]
[1759175661150,3.31993434,212.48,212.41,65.8663]
[1759175661446,7.34,212.49,212.43,2.18388947]
[1759175661447,125.26,212.49,212.43,2.18388947]
[1759175662647,7.34,212.48,212.46,4.2332]
[1759175663741,7.34,212.5,212.48,4.2328]
[1759175663943,118.02,212.54,212.46,2.18388947]
[1759175664140,7.34,212.53,212.46,2.18388947]
[1759175665643,7.27,212.53,212.5,4.2324]
[1759175666145,118.02,212.54,212.5,4.2324]
[1759175666345,7.27,212.53,212.5,4.2324]
[1759175667450,7.27,212.53,212.51,4.2321]
[1759175667747,117.94,212.56,212.49,2.18388947]
[1759175667948,125.13,212.57,212.49,2.18388947]
[1759175668147,7.27,212.57,212.52,9.78388947]
[1759175668353,7.27,212.57,212.52,2.18388947]
[1759175668652,117.88,212.58,212.55,4.2313]
[1759175668947,0.81895842,212.62,212.57,2.18388947]
[1759175669151,0.81895842,212.62,212.53,73.429]
[1759175669152,14.7,212.68,212.61,2.18388947]
[1759175669356,7.27,212.65,212.61,2.18388947]
[1759175669754,0.81876573,212.66,212.61,2.18388947]
[1759175669949,7.27,212.65,212.61,2.18388947]
[1759175670246,0.81876573,212.66,212.61,2.18388947]
[1759175670652,7.27,212.65,212.61,2.18388947]
[1759175670852,0.81876573,212.66,212.61,2.18388947]
[1759175671056,2.18388947,212.73,212.63,2.18388947]
[1759175671360,0.81862128,212.7,212.65,2.18388947]
[1759175671747,7.27,212.69,212.65,2.18388947]
[1759175672148,7.27,212.69,212.62,4.2301]
[1759175672561,7.27,212.69,212.65,2.18388947]
[1759175672753,7.27,212.69,212.67,2.18388947]
[1759175673251,7.27,212.7,212.67,2.18388947]
[1759175674651,0.81848651,212.74,212.67,2.18388947]
[1759175674652,118.77848651,212.74,212.67,2.18388947]
[1759175674953,7.27,212.73,212.69,2.18388947]
[1759175675944,11.4975,212.75,212.69,2.18388947]
[1759175677053,7.27,212.75,212.69,2.18388947]
[1759175677445,7.27,212.75,212.64,13.93211426]
[1759175677446,9.45388947,212.75,212.64,4.2295]
[1759175677753,10.27226049,212.75,212.65,2.18388947]
[1759175678149,12.31587102,212.75,212.65,2.18388947]
[1759175678358,8.08837102,212.75,212.67,2.18388947]
[1759175678651,117.94,212.74,212.69,2.18388947]
[1759175678953,7.27,212.73,212.69,2.18388947]
[1759175679146,117.94,212.74,212.69,2.18388947]
[1759175679350,126.04837102,212.75,212.69,2.18388947]
[1759175679657,130.25587102,212.75,212.69,2.18388947]
[1759175679853,12.31587102,212.75,212.69,2.18388947]
[1759175680049,7.27,212.73,212.69,2.18388947]
[1759175680452,7.27,212.73,212.67,2.18388947]
[1759175681556,11.4979,212.73,212.67,2.18388947]
[1759175681759,7.27,212.73,212.63,6.41378947]
[1759175682256,7.27,212.73,212.65,2.18388947]
[1759175683759,4.2281,212.72,212.65,2.18388947]
[1759175685062,7.27,212.73,212.65,6.41318947]
[1759175685460,7.27,212.73,212.65,2.18388947]
[1759175685759,124.99,212.73,212.65,2.18388947]
[1759175685953,124.99,212.73,212.66,2.18388947]
[1759175687253,7.27,212.73,212.66,2.18388947]
[1759175687560,117.66,212.72,212.66,2.18388947]
[1759175688275,117.66,212.72,212.65,4.2295]
[1759175689367,117.66,212.72,212.64,7.6]
[1759175689664,7.27,212.71,212.62,17.29705601]
[1759175689860,7.27,212.71,212.6,11.00311067]
[1759175690062,4.2286,212.7,212.62,4.23]
[1759175690262,7.27,212.71,212.61,7.6]
[1759175691268,7.27,212.71,212.65,4.2294]
[1759175691962,7.27,212.71,212.63,4.2298]
[1759175692163,7.27,212.71,212.64,7.6]
[1759175692367,124.75,212.71,212.64,7.6]
[1759175693169,124.75,212.71,212.65,4.2293]
[1759175693368,124.75,212.71,212.64,7.6]
[1759175693871,7.27,212.71,212.64,7.6]
[1759175694362,124.69,212.71,212.64,7.6]
[1759175694568,128.9184,212.71,212.64,11.8296]
[1759175694768,128.9184,212.71,212.64,4.2296]
[1759175694967,124.69,212.71,212.61,17.47396533]
[1759175695968,7.35,212.7,212.61,17.47396533]
[1759175696369,4.2288,212.69,212.62,4.23]
[1759175696670,7.35,212.7,212.57,3.40311067]
[1759175696859,7.35,212.7,212.58,7.84]
[1759175697162,77.65,212.7,212.61,7.84]
[1759175697768,77.65,212.7,212.62,3.40311067]
[1759175698674,77.65,212.7,212.64,4.2295]
[1759175699474,81.8786,212.7,212.64,4.2295]
[1759175699674,81.8786,212.7,212.62,7.63311067]
[1759175700169,11.5786,212.7,212.62,3.40311067]
[1759175700474,7.35,212.69,212.57,3.40311067]
[1759175700675,7.35,212.67,212.57,3.40311067]
[1759175700871,7.35,212.67,212.58,7.84]
[1759175701074,124.91,212.67,212.58,7.84]
[1759175701576,124.91,212.67,212.56,3.40311067]
[1759175702075,7.35,212.67,212.56,3.40311067]
[1759175702373,117.62,212.66,212.56,3.40311067]
[1759175702579,117.62,212.66,212.59,4.2307]
[1759175702772,117.62,212.66,212.56,3.40311067]
[1759175703076,124.99,212.67,212.57,7.84]
[1759175703572,7.35,212.66,212.53,133.80905294]
[1759175703778,117.64,212.67,212.53,133.80905294]
[1759175703974,7.35,212.64,212.53,133.80905294]
[1759175704178,7.35,212.64,212.56,7.84]
[1759175704779,7.35,212.64,212.58,4.2308]
[1759175705477,7.35,212.68,212.59,7.84]
[1759175706072,7.35,212.7,212.63,4.2297]
[1759175706677,7.35,212.7,212.61,3.40311067]
[1759175706678,7.35,212.7,212.64,4.2295]
[1759175707383,7.35,212.7,212.62,12.07]
[1759175707580,71.3,212.72,212.58,7.84]
[1759175707777,7.35,212.71,212.6,3.40311067]
[1759175708174,11.5783,212.71,212.61,7.84]
[1759175708378,7.35,212.71,212.61,7.84]
[1759175708575,4.229,212.68,212.6,7.63351067]
[1759175708778,7.35,212.67,212.6,7.63351067]
[1759175708980,7.35,212.7,212.57,11.24311067]
[1759175709383,7.35,212.65,212.58,4.2309]
[1759175709584,7.35,212.65,212.57,11.24311067]
[1759175709883,7.35,212.65,212.57,3.40311067]
[1759175710091,73.13,212.65,212.54,7.63471067]
[1759175710289,73.13,212.65,212.54,3.40311067]
[1759175710489,100.61,212.65,212.57,3.40311067]
[1759175710685,7.35,212.65,212.58,7.84]
[1759175711194,7.35,212.65,212.58,12.0707]
[1759175711583,7.35,212.7,212.6,3.40311067]
[1759175711783,117.66,212.69,212.6,3.40311067]
[1759175712182,117.66,212.69,212.61,4.2301]
[1759175712983,117.66,212.69,212.61,7.84]
[1759175714288,117.66,212.69,212.63,4.2297]
[1759175714488,7.35,212.7,212.63,4.2297]
[1759175714878,7.35,212.7,212.64,4.2295]
[1759175716291,5.2184296,212.74,212.63,7.72]
[1759175716485,7.62,212.73,212.63,7.72]
[1759175717290,7.62,212.73,212.66,4.2291]
[1759175718093,5.2184296,212.72,212.61,4.2302]
[1759175718386,7.62,212.71,212.62,11.12311067]
[1759175718985,7.62,212.71,212.63,4.2298]